Cogmind - Beta 16 @@@ ROGUE MODE // 2025.11.14 @ 11:22:28 Player: souux Result: Destroyed by X6-F6C(R) with Subdweller Laser Performance ------------- Evolutions (0) 0 Regions Visited (2) 400 Robots Destroyed (26) 130 Value Destroyed (428) 428 Prototype IDs (0) 0 Alien Tech Used (0) 0 Bonus (0) 0 TOTAL SCORE: 958 Bonus ------- None Cogmind --------- Core Integrity 0/250 Matter 140/300 Energy 156/250 System Corruption 0% Temperature Cool (6) Movement Treading (320) Ox2 Location -10/Subcaves Parts ------- > --- POWER (1) -------- Ion Engine > --- PROPULSION (2) --- Light Treads > --- UTILITY (2) ------ Improved Heat Sink High-capacity Storage Unit > --- WEAPON (2) ------- Medium Laser > --- INVENTORY (20) --- Subdweller Power Source Light Nuclear Core Light Treads Light Treads Wheel Wheel High-capacity Matter Pod (26) Structural Scanner Subdweller Optics Seismic Detector ECM Suite Light Armor Plating EM Pulse Gun Assault Rifle Assault Rifle Assault Rifle Hammer Peak State ------------ > --- POWER ------------ Ion Engine > --- PROPULSION ------- Light Treads Wheel > --- UTILITY ---------- Improved Heat Sink High-capacity Storage Unit > --- WEAPON ----------- Beam Cannon Beam Cannon > --- INVENTORY -------- Subdweller Power Source Light Nuclear Core Light Treads Light Treads Light Treads Wheel High-capacity Matter Pod Structural Scanner Subdweller Optics Seismic Detector ECM Suite Light Armor Plating EM Pulse Gun Medium Laser Assault Rifle Assault Rifle Assault Rifle Hammer [Rating: 11] Favorites ----------- Power Ion Engine Engine Ion Engine Propulsion Wheel Treads Light Treads Wheel Wheel Utility High-capacity Storage Unit Device Seismic Detector Storage High-capacity Storage Unit Protection Light Armor Plating Weapon Medium Laser Energy Gun Medium Laser Energy Cannon Beam Cannon Ballistic Gun Assault Rifle Impact Weapon Hammer Build | -11 -10 -10 ------- Run | Yrd Mat Sub Slots Evolved . | . . . Power . | . . . Propulsion . | . . . Utility . | . . . Weapon . | . . . Parts Attached 22 | 7 11 4 Power 5 | 1 3 1 Engine 5 | 1 3 1 Core . | . . . Reactor . | . . . Propulsion 7 | 2 5 . Treads 3 | . 3 . Leg . | . . . Wheel 4 | 2 2 . Hover . | . . . Flight . | . . . Utility 5 | 2 3 . Device 2 | 1 1 . Storage 2 | 1 1 . Processor . | . . . Hackware . | . . . Protection 1 | . 1 . Artifact . | . . . Weapon 5 | 2 . 3 Energy Gun 1 | 1 . . Energy Cannon 2 | . . 2 Ballistic Gun 1 | 1 . . Ballistic Cannon . | . . . Launcher . | . . . Special Weapon . | . . . Impact Weapon 1 | . . 1 Slashing Weapon . | . . . Piercing Weapon . | . . . Special Melee Weapon . | . . . Unidentified Prototypes . | . . . Parts Lost 4 | . . 4 Power 1 | . . 1 Propulsion 1 | . . 1 Utility . | . . . Weapon 2 | . . 2 Highest Loss Streak 3 | . . 3 To Critical Strikes . | . . . Average Backups 14 | 4 13 18 Power 2 | . 1 2 Propulsion 3 | 3 3 4 Utility 3 | . 3 5 Weapon 4 | . 4 5 Tool/Special . | . . . Unused Backups 13 | . 3 10 Power 2 | . . 2 Propulsion 3 | . 2 1 Utility 4 | . . 4 Weapon 4 | . 1 3 Tool/Special . | . . . Average Slot Usage (%) 99 | . 99 99 Engine 13 | . 13 13 Treads 5 | . 2 15 Wheel 22 | . 25 12 Device 11 | . 13 6 Storage 14 | . 14 14 Protection 2 | . . 8 Energy Gun 11 | . 13 2 Energy Cannon 3 | . . 18 Ballistic Gun 11 | . 13 1 Peak Build Rating 11 | 7 10 11 Average Rating 8 | 5 8 9 On Entrance 5 | . 7 9 Avg Prop Armor Cover (%) 6 | . . 6 Naked Turns . | . . . Heaviest Build 54 | 15 52 54 Greatest Support 40 | 32 40 40 Greatest Overweight (x) 15 | . 15 5 Average Overweight (x) 1 | . 1 2 Largest Inventory Capacity 20 | 8 20 20 Average Capacity 17 | 7 17 20 Most Carried 19 | 8 16 19 Average Carried 14 | 5 13 18 Final Capacity 20 | 8 20 20 Final Carried 17 | 7 16 17 Class Distribution -------------------- 100% | Mutant Dominant Class ---------------- Mutant | -10/Materials Mutant | -10/Subcaves Resources | -11 -10 -10 ----------- Run | Yrd Mat Sub Matter Collected 922 | 306 520 96 Remotely . | . . . Salvage Created 880 | 171 613 96 Parts 54 | 11 37 6 Haulers Intercepted 2 | . 2 . Recyclers Shooed . | . . . Parts Field Recycled . | . . . Retrieved Matter . | . . . Parts Self-Destructed 3 | . . 3 Prevented . | . . . Parts Restored . | . . . Kills | -11 -10 -10 ------- Run | Yrd Mat Sub Combat Hostiles Destroyed 13 | . 11 2 Guns 11 | . 11 . Cannons 2 | . . 2 Classes Destroyed 8 | 2 5 1 Tunneler 5 | 5 . . Hauler 2 | . 2 . Recycler 3 | 1 2 . Operator 2 | . 2 . Watcher 1 | . 1 . Swarmer 6 | . 6 . Grunt 5 | . 5 . Subdweller 2 | . . 2 Best Kill Streak 5 | 5 4 2 Combat Bots Only 3 | . 3 2 Max Kills in Single Turn 1 | 1 1 1 Gunslinging . | . . . Exploded . | . . . Melee . | . . . Uniques/NPCs Destroyed . | . . . Combat | -11 -10 -10 -------- Run | Yrd Mat Sub Hostile Shots Fired 87 | . 34 53 Missed 24 | . 10 14 Hits 63 | . 24 39 Projectile 63 | . 24 39 Critical Strikes 1 | . . 1 Damage Taken 1048 | . 237 811 Core 256 | . 23 233 Absorbed by Shields . | . . . Regen/Repaired (Parts) 55 | . 55 . Core Remaining (%) 100 | 100 . . Volleys Fired 96 | 12 48 36 Largest 2 | 2 2 2 Hottest 120 | 70 70 120 Shots Fired 184 | 24 95 65 Gun 131 | 24 95 12 Cannon 53 | . . 53 Launcher . | . . . Special . | . . . Kinetic 60 | 12 48 . Thermal 124 | 12 47 65 Explosive . | . . . Electromagnetic . | . . . Robot Hit Streak 19 | 6 10 19 Robot Miss Streak 4 | 1 4 1 Penetration Max . | . . . Secondary Targets . | . . . Shots Hit Robots 123 | 15 55 53 Core Hits 41 | 7 30 4 Critical Kills . | . . . Critical Parts Destroyed 1 | . 1 . Critical Strikes 5 | 1 4 . Burn 4 | 1 3 . Destroy 1 | . 1 . Melee Attacks 9 | . . 9 Impact 9 | . . 9 Slashing . | . . . Piercing . | . . . Sneak Attacks 1 | . . 1 Combat Hostiles . | . . . Follow-up Attacks . | . . . Damage Inflicted 1017 | 204 672 141 Guns 875 | 204 671 . Cannons 141 | . . 141 Explosions . | . . . Melee . | . . . Ramming 1 | . 1 . Kinetic 416 | 105 311 . Thermal 600 | 99 360 141 Explosive . | . . . Electromagnetic . | . . . Impact . | . . . Slashing . | . . . Piercing . | . . . Highest Corruption . | . . . Average Corruption . | . . . Corruption Purged . | . . . Corruption Blocked . | . . . Overload Shots . | . . . Overflow Damage . | . . . Projectiles . | . . . Explosions . | . . . Melee . | . . . Knockbacks . | . . . Impact . | . . . Kinetic . | . . . Secondary . | . . . Self-Inflicted Damage . | . . . Shots . | . . . Rammed 1 | . 1 . Targets Rammed 1 | . 1 . Kicked . | . . . Crushed . | . . . Highest Temperature 117 | 54 90 117 Average Temperature 29 | 21 28 38 Received Heat Transfer 333 | . 99 234 Siege Activations . | . . . Martial Activations . | . . . Shielding Activations . | . . . Robots Disrupted . | . . . Combat Hostiles . | . . . Robots Corrupted . | . . . Combat Hostiles . | . . . Parts Fried . | . . . Impact Corruptions . | . . . Robots Melted . | . . . Combat Hostiles . | . . . Parts Melted 4 | . 4 . Heat Transferred 1961 | 370 1295 296 Parts Sabotaged . | . . . Parts Stolen . | . . . Parts Stripped . | . . . Power Chain Reactions . | . . . Alert | -11 -10 -10 ------- Run | Yrd Mat Sub Maximum Alert Level . | . . . Low Security (%) 100 | 100 100 . Level 1 . | . . . Level 2 . | . . . Level 3 . | . . . Level 4 . | . . . Level 5 . | . . . High Security . | . . . Max Security . | . . . Peak Influence 148 | 20 148 . Initial . | . . . Average 24 | 4 25 . Influence Increases 429 | 30 399 . Destroy 0b10 Robot/C 220 | . 220 . Destroy 0b10 Robot/NC 65 | 30 35 . Destroy Leader 56 | . 56 . Successful Hack 42 | . 42 . Destroy Structure 1 | . 1 . Lose Combat Pursuer 45 | . 45 . Influence Decreases 429 | 30 399 . Time Decay 429 | 30 399 . Squads Dispatched 4 | . 4 . Investigation 2 | . 2 . Extermination . | . . . Reinforcement 2 | . 2 . Assault . | . . . Garrison . | . . . Intercept . | . . . Searches Triggered . | . . . Construction Impeded . | . . . Haulers Reinforced . | . . . Active Scanning Responses . | . . . Cargo Convoy Interrupts . | . . . Stealth | -11 -10 -10 --------- Run | Yrd Mat Sub Distress Signals . | . . . Communications Jammed . | . . . Distress Signals . | . . . Times Spotted 25 | . 22 3 Peak Tracking Total 5 | . 5 2 Tactical Retreats 2 | . 2 . Traps | -11 -10 -10 ------- Run | Yrd Mat Sub Traps Triggered 5 | . 5 . Indirectly . | . . . Trap Hack Attempts . | . . . Triggered . | . . . Disarmed . | . . . Reprogrammed . | . . . Reused . | . . . Traps Extracted . | . . . Installed . | . . . Triggered . | . . . Machines | -11 -10 -10 ---------- Run | Yrd Mat Sub Machines Disabled . | . . . Max in Single Turn . | . . . Machines Repaired . | . . . Machines Dismantled . | . . . Machines Sabotaged . | . . . Overloaded Fab Kills . | . . . Hacking | -11 -10 -10 --------- Run | Yrd Mat Sub Machines Accessed 7 | . 7 . Terminals 6 | . 6 . Fabricators . | . . . Repair Stations 1 | . 1 . Recycling Units . | . . . Scanalyzers . | . . . Garrison Access . | . . . Total Hacks 23 | . 23 . Successful 10 | . 10 . Failed 13 | . 13 . Catastrophic . | . . . Database Lockouts . | . . . Manual 19 | . 19 . Terminals 18 | . 18 . Fabricators . | . . . Repair Stations 5 | . 5 . Recycling Units . | . . . Scanalyzers . | . . . Garrison Access . | . . . Terminal Hacks . | . . . Fabricator Hacks . | . . . Repair Station Hacks 3 | . 3 . Scan Component 2 | . 2 . Repair 1 | . 1 . Recycling Unit Hacks . | . . . Scanalyzer . | . . . Garrison Access Hacks . | . . . Unauthorized Hacks 7 | . 7 . Terminals 7 | . 7 . Botnet 2 | . 2 . Skim 5 | . 5 . Fabricators . | . . . Repair Stations . | . . . Recycling Units . | . . . Scanalyzers . | . . . Garrison Access . | . . . Data Cores Recovered . | . . . Used . | . . . Hacking Detections 7 | . 7 . Full Trace Events . | . . . Feedback Events . | . . . Feedback Blocked . | . . . Robot Schematics Acquired . | . . . Robots Built . | . . . Authchips . | . . . Time . | . . . Total Robot Build Rating . | . . . Part Schematics Acquired . | . . . Parts Built . | . . . Authchips . | . . . Time . | . . . Total Part Build Rating . | . . . Part Studies Acquired . | . . . Parts Repaired 1 | . 1 . Time 13 | . 13 . Parts Recycled . | . . . Recycled Matter . | . . . Retrieved Matter . | . . . Retrieved Components . | . . . Parts Scanalyzed . | . . . Part Schematics Acquired . | . . . Parts Damaged . | . . . Bothacking | -11 -10 -10 ------------ Run | Yrd Mat Sub Used RIF Installer . | . . . Robots Hacked . | . . . Non-combat . | . . . Combat . | . . . Robot Hacks Applied . | . . . Relay Couplers Released . | . . . Fabnet Peak Effective % . | . . . Robots Rewired . | . . . Allies Hacked . | . . . Hacks Repelled . | . . . Allies | -11 -10 -10 -------- Run | Yrd Mat Sub Total Allies . | . . . Largest Group . | . . . Highest-Rated Group . | . . . Highest-Rated Ally . | . . . Total Orders . | . . . Ally Attacks . | . . . Total Damage . | . . . Kills . | . . . Allies Corrupted . | . . . Allies Melted . | . . . Intel | -11 -10 -10 ------- Run | Yrd Mat Sub Active Infowar (turns) 2422 | 18 2214 190 Seismic 2422 | 18 2214 190 Robot Analysis Total . | . . . Derelict Logs Recovered 1 | . . 1 Drone Launches . | . . . Drone Recoveries . | . . . Exploration | -11 -10 -10 ------------- Run | Yrd Mat Sub Turns Passed 3163 | 139 2403 621 Spaces Moved 1208 | 86 869 253 Core 3 | 2 1 . Treads 118 | . 47 71 Legs . | . . . Wheels 1087 | 84 821 182 Hover . | . . . Flight . | . . . Fastest Speed 50 | 50 90 110 Average Speed 116 | 98 107 154 Slowest Speed 800 | 100 800 240 Overloaded Moves . | . . . Propulsion Burnouts . | . . . Robots Hopped . | . . . Potential Cave-ins . | . . . Cave-ins Triggered . | . . . Exploration Rate (%) 39 | 6 98 14 Regions Visited 2 Branch Regions 1 Pre-discovered Areas 3 | . 1 2 Known Exits Taken 1 | . 1 . Unknown Exits Taken 1 | 1 . . Scrap Searched . | . . . Spaces Dug . | . . . Terrain Destroyed . | . . . Melee . | . . . Projectile . | . . . AOE . | . . . Terrain Rammed . | . . . Walls Destroyed . | . . . Machines Disabled . | . . . Actions | -11 -10 -10 --------- Run | Yrd Mat Sub Total 2737 | 113 2233 391 Wait 1322 | 1 1256 65 Move 1206 | 85 868 253 Hop . | . . . Pick Up 24 | 8 13 3 Fast Attach 14 | 6 8 . Attach 3 | 1 . 2 Detach . | . . . Swap 53 | . 30 23 Drop 9 | . 9 . Fire 96 | 12 48 36 Melee 9 | . . 9 Ram . | . . . Kick . | . . . Crush 1 | . 1 . Escape Stasis . | . . . Rewire . | . . . Trap . | . . . Miscellaneous . | . . . Route ------- -11/Scrapyard -10/Materials (discovered 5 exits: [*Mat x3] / [*Min] / *Sub) -10/Subcaves (discovered 2 exits: Mat x2) History --------- Turn | Location | Event 30 | -11/Scrapyard | Discovered new exit (range 15) 140 | -11/Scrapyard | Entered Materials 305 | -10/Materials | Build established: Mutant 400 | -10/Materials | Discovered new exit (range 15) 496 | -10/Materials | Discovered new exit (range 13) 706 | -10/Materials | Discovered new exit (range 6) 776 | -10/Materials | Repaired Med. Laser 1690 | -10/Materials | Discovered new exit (range 12) 1731 | -10/Materials | Learned Storage stockpile data 1865 | -10/Materials | Loaded intel: 2 recycling unit locations 1918 | -10/Materials | Identified exit to Subcaves 1918 | -10/Materials | Learned location of 1 exit from Materials 1996 | -10/Materials | Learned location of 2 exits from Mines 2098 | -10/Materials | Learned 4 Recycling zone layouts 2151 | -10/Materials | Learned Storage emergency access door positions 2543 | -10/Materials | Entered Subcaves 2544 | -10/Subcaves | Identified exit to Materials 2572 | -10/Subcaves | Learned location of Mines (-9) 2810 | -10/Subcaves | Learned location of Zion (-6) 2810 | -10/Subcaves | Met a Zionite searching for "candidates" 3127 | -10/Subcaves | Core integrity fell below 50% 3147 | -10/Subcaves | Core integrity fell below 20% 3164 | -10/Subcaves | Destroyed by X6-F6C(R) with Subdweller Laser Last Messages --------------- 02701_ Acquired Hcp. Matter Pod. 02702_ Acquired 44 matter. 02710_ Subatomizers dissect the Sub. Monowheel. 02710_ Acquired Sub. Power Source. 02721_ Subatomizers dissect the Sub. Monowheel. 02745_ 3L-Y1E(z): "She is not going to be happy we haven't found any suitable candidates yet." 02810_ 3L-Y1E(z): "Hey you! It's really dangerous down here, I feel that you could die at any moment. For your health and safety might I suggest a trip to Zion?" World map updated: -6/Zion. 03000_ Subatomizers dissect the Disposable Heat Sink. 03018_ Sneak attack on CM-KHV(u). 03068_ X6-F6C(R) angrily emerges from the Twisted Machinery. 03098_ Ion Engine destroyed. 03134_ Beam Cannon destroyed. 03154_ Lgt. Treads destroyed. Map ----- +----------------------------------------------------+ | ?????????????????????????????????????????????????? | | ?????????????????????????????????????????????????? | | ?????????????????????????????????????????????????? | | ?????????????????????????????????????????????????? | | ?????????????????????????????????????????????????? | | ?????????????????????????????????????????????????? | | ?????????????????????????????????????????????????? | | ?????????????????????????????????????????????????? | | ?????????????????????????????????????????????????? | | ?????????????? ??????????????????????????????????? | | ?????????????? ??????????????????????????????????? | | ?????????????# ??????????????????????????????????? | | ????????????? ??????????????????????????????????? | | ???????????## ??????????????????????????????????? | | ??????????## ??????????????????????????????????? | | ??????????# ??????????????????????????????????? | | ?????????## ??????????????????????????????????? | | ?????????# ??????????????????????????????????? | | ?????????# ??????????????????????????????????? | | ?????????? ?##???????????????????????????????? | | ??????????# ## #???##?###??????????????????????? | | ??????????? #???? #$ #??????????????????????? | | ??????????## #???? $???????????????????????? | | ??????????# #???##&"????????????????????????? | | ???????????# # ##??#$ ###??????????????????????? | | ???????????# ## #?### #@#??????????????????????? | | ??????????## # #### " R #??????????????????????? | | ???######## # #??????????????????????? | | #### ### # ## #?????????????????????? | | ## ##????????????????????? | | ## #### #????????????????????? | | ### #?##### #????????????????????? | | # ## ### #??????# #?####???????????????? | | #### #### #??????# ## #???????????????? | | ## #?# ## ####???# #???????????????? | | ## ### #### ##### #???????????????? | | #### """####???## ##???????????????? | | #?#"" #???????## #????????????????? | | "## #????????## #????????????????? | | #### #????????# ##????????????????? | | #??#### #???????######## ##?????????????????? | | ???????####??????????????######??????????????????? | | ?????????????????????????????????????????????????? | | ?????????????????????????????????????????????????? | | ?????????????????????????????????????????????????? | | ?????????????????????????????????????????????????? | | ?????????????????????????????????????????????????? | | ?????????????????????????????????????????????????? | | ?????????????????????????????????????????????????? | | ?????????????????????????????????????????????????? | +----------------------------------------------------+ Best States ------------- Heat Dissipation 39 Energy Generation 10 Energy Capacity 250 Matter Stores 300 Matter Capacity 300 Sight Range 16 Terrain Scan Density 10 Armor Coverage 150 Evasion (%) 42 Recoil Reduction 2 Item Schematics ----------------- None Robot Schematics ------------------ None Fabricated ------------ Nothing Repaired ---------- Med. Laser | 21% | -10/Materials Studied --------- None Alien Tech Used ----------------- None Achievements -------------- None Challenges ------------ None Game ------ Seed AccelerationCentriumKatana Manual? 0 Play Time 00:35:39 Cumulative 94.8 hours Start 2025.11.14 @ 10:31:14 End 2025.11.14 @ 11:22:28 Sessions 1 Manual Loads 0 Difficulty Rogue Special Mode None Game No. 85 Rogue 85 Adventurer 0 Explorer 0 Win Type - Total 1 Types 1/0/0/0/0/0/0/0/0/0 Lore% 38 Gallery% 42 Achievement% 34 Wizard Run 0 Options --------- Layout 2 ASCII 0 Keyboard 0 Movement Mouse Keybinds 0 Fullscreen 2 Font 24/Terminus Map View 50x44 Zoom Use 0% Tactical HUD 1 Map Filters NONE Filters NONE Steam 1 RUN: 9ca66ad2-ca60-410f-bd08-5f3713ca49dd